[Event "Late-Titled-Tuesday-Blitz-June-04-2024"]
[Site "Chess.com"]
[Date "2024.06.04"]
[Round "4"]
[White "kemelgallo"]
[Black "Crasyhealer"]
[Result "1/2-1/2"]
[WhiteElo "2714"]
[BlackElo "2530"]
[TimeControl "180+1"]
[EndTime "14:40:45 PDT"]
[Termination "Game drawn by stalemate"]

1. e4 {[%clk 0:03:00.9]} 1... e5 {[%clk 0:02:58.6]} 2. Nf3 {[%clk 0:03:00.8]}
2... Nc6 {[%clk 0:02:58.2]} 3. Bb5 {[%clk 0:03:01.2]} 3... a6 {[%clk 0:02:56.5]}
4. Ba4 {[%clk 0:03:01.2]} 4... Nf6 {[%clk 0:02:56.2]} 5. O-O {[%clk 0:03:01]}
5... b5 {[%clk 0:02:53.8]} 6. Bb3 {[%clk 0:03:01.2]} 6... Be7 {[%clk 0:02:53.5]}
7. d3 {[%clk 0:03:00.8]} 7... O-O {[%clk 0:02:53.3]} 8. a4 {[%clk 0:02:50.7]}
8... Rb8 {[%clk 0:02:46.6]} 9. axb5 {[%clk 0:02:49.4]} 9... axb5 {[%clk
0:02:47.5]} 10. Nc3 {[%clk 0:02:49.6]} 10... b4 {[%clk 0:02:46.8]} 11. Nd5
{[%clk 0:02:49.1]} 11... Nxd5 {[%clk 0:02:46.5]} 12. Bxd5 {[%clk 0:02:34]} 12...
Bf6 {[%clk 0:02:44.8]} 13. Bd2 {[%clk 0:02:14.5]} 13... Ne7 {[%clk 0:02:44.2]}
14. Bb3 {[%clk 0:02:12.7]} 14... d5 {[%clk 0:02:43.8]} 15. Qe1 {[%clk
0:02:08.4]} 15... c5 {[%clk 0:02:30.8]} 16. exd5 {[%clk 0:01:41.2]} 16... Qd6
{[%clk 0:02:19.2]} 17. Bg5 {[%clk 0:01:28.9]} 17... Bxg5 {[%clk 0:02:12.5]} 18.
Nxg5 {[%clk 0:01:29]} 18... Nxd5 {[%clk 0:02:12]} 19. Nxh7 {[%clk 0:01:23.2]}
19... Nf4 {[%clk 0:01:46]} 20. Nxf8 {[%clk 0:01:15.5]} 20... Bb7 {[%clk
0:01:39.4]} 21. f3 {[%clk 0:00:56.2]} 21... Rxf8 {[%clk 0:01:39]} 22. Kh1 {[%clk
0:00:53.8]} 22... g6 {[%clk 0:01:36.2]} 23. Ra7 {[%clk 0:00:51.7]} 23... Qb6
{[%clk 0:01:35.4]} 24. Rxb7 {[%clk 0:00:50.3]} 24... Qxb7 {[%clk 0:01:35.4]} 25.
Qxe5 {[%clk 0:00:50.5]} 25... Nh5 {[%clk 0:01:32.3]} 26. Qxc5 {[%clk 0:00:49.5]}
26... Re8 {[%clk 0:01:31.3]} 27. Qd6 {[%clk 0:00:43.7]} 27... Kg7 {[%clk
0:01:28.8]} 28. Qd4+ {[%clk 0:00:43.5]} 28... Nf6 {[%clk 0:01:28.7]} 29. g4
{[%clk 0:00:31.5]} 29... g5 {[%clk 0:01:28.4]} 30. Kg1 {[%clk 0:00:28.9]} 30...
Kg6 {[%clk 0:01:26.4]} 31. h3 {[%clk 0:00:27.7]} 31... Qc7 {[%clk 0:01:24.3]}
32. Kg2 {[%clk 0:00:24.8]} 32... Nd7 {[%clk 0:01:20.7]} 33. f4 {[%clk
0:00:16.8]} 33... Re2+ {[%clk 0:01:18.7]} 34. Rf2 {[%clk 0:00:17]} 34... Rxf2+
{[%clk 0:01:16.6]} 35. Qxf2 {[%clk 0:00:17.9]} 35... gxf4 {[%clk 0:01:16.7]} 36.
Bd5 {[%clk 0:00:17.5]} 36... Qe5 {[%clk 0:01:15.5]} 37. Be4+ {[%clk 0:00:17.7]}
37... Kg5 {[%clk 0:01:14.6]} 38. b3 {[%clk 0:00:10.3]} 38... Nf6 {[%clk
0:01:12.3]} 39. Qf3 {[%clk 0:00:03.2]} 39... Qc3 {[%clk 0:01:08.2]} 40. Qe2
{[%clk 0:00:02]} 40... Nd7 {[%clk 0:01:05.7]} 41. Bf3 {[%clk 0:00:02.1]} 41...
Ne5 {[%clk 0:01:05.6]} 42. Qf2 {[%clk 0:00:02.4]} 42... Kg6 {[%clk 0:01:04]} 43.
h4 {[%clk 0:00:02.4]} 43... f5 {[%clk 0:01:02.7]} 44. gxf5+ {[%clk 0:00:02.4]}
44... Kxf5 {[%clk 0:01:03.6]} 45. Be4+ {[%clk 0:00:03]} 45... Kg4 {[%clk
0:01:00.7]} 46. Bf3+ {[%clk 0:00:02.9]} 46... Kf5 {[%clk 0:00:59.4]} 47. Be4+
{[%clk 0:00:03.5]} 47... Kg4 {[%clk 0:00:59.2]} 48. Kh2 {[%clk 0:00:04.2]} 48...
Qc7 {[%clk 0:00:45.7]} 49. Bg2 {[%clk 0:00:03.3]} 49... f3 {[%clk 0:00:44.6]}
50. Bh3+ {[%clk 0:00:03.3]} 50... Kh5 {[%clk 0:00:43.5]} 51. Qg3 {[%clk
0:00:03.7]} 51... Qxc2+ {[%clk 0:00:43.4]} 52. Kg1 {[%clk 0:00:03.2]} 52... Qc1+
{[%clk 0:00:43.2]} 53. Kh2 {[%clk 0:00:03.6]} 53... Qd2+ {[%clk 0:00:43.1]} 54.
Kg1 {[%clk 0:00:03.8]} 54... Qe3+ {[%clk 0:00:42.5]} 55. Kh2 {[%clk 0:00:03.6]}
55... Qe2+ {[%clk 0:00:42.1]} 56. Kh1 {[%clk 0:00:03.8]} 56... Qd1+ {[%clk
0:00:39.1]} 57. Kh2 {[%clk 0:00:04.2]} 57... Qd2+ {[%clk 0:00:39.6]} 58. Kh1
{[%clk 0:00:04.4]} 58... Qe3 {[%clk 0:00:34.9]} 59. Kh2 {[%clk 0:00:03.5]} 59...
Kh6 {[%clk 0:00:29.4]} 60. d4 {[%clk 0:00:03.1]} 60... Qd2+ {[%clk 0:00:25.7]}
61. Kh1 {[%clk 0:00:03.4]} 61... Qd1+ {[%clk 0:00:25.3]} 62. Kh2 {[%clk
0:00:03.9]} 62... Qc2+ {[%clk 0:00:23.6]} 63. Kh1 {[%clk 0:00:04.3]} 63... Qc1+
{[%clk 0:00:24]} 64. Kh2 {[%clk 0:00:04.8]} 64... Qd2+ {[%clk 0:00:24.5]} 65.
Kg1 {[%clk 0:00:05.3]} 65... Qxd4+ {[%clk 0:00:25.1]} 66. Kh2 {[%clk 0:00:05.5]}
66... Qd2+ {[%clk 0:00:25.1]} 67. Kh1 {[%clk 0:00:05.7]} 67... Qe3 {[%clk
0:00:25.5]} 68. Bf5 {[%clk 0:00:04.7]} 68... Qc1+ {[%clk 0:00:19.9]} 69. Kh2
{[%clk 0:00:05.2]} 69... f2 {[%clk 0:00:17.2]} 70. Qxf2 {[%clk 0:00:04.1]} 70...
Qd1 {[%clk 0:00:13.7]} 71. Be6 {[%clk 0:00:03.8]} 71... Nf3+ {[%clk 0:00:13.4]}
72. Kg3 {[%clk 0:00:04.1]} 72... Nd4 {[%clk 0:00:11]} 73. Qf6+ {[%clk
0:00:03.5]} 73... Kh7 {[%clk 0:00:11.2]} 74. Bf5+ {[%clk 0:00:02.7]} 74... Nxf5+
{[%clk 0:00:11.1]} 75. Qxf5+ {[%clk 0:00:03.2]} 75... Kg7 {[%clk 0:00:11.8]} 76.
Qg4+ {[%clk 0:00:03.2]} 76... Qxg4+ {[%clk 0:00:10.3]} 77. Kxg4 {[%clk
0:00:04.1]} 77... Kg6 {[%clk 0:00:11.2]} 78. Kf4 {[%clk 0:00:05]} 78... Kh5
{[%clk 0:00:12.1]} 79. Kg3 {[%clk 0:00:05.3]} 79... Kg6 {[%clk 0:00:11.7]} 80.
Kg4 {[%clk 0:00:06]} 80... Kh6 {[%clk 0:00:12.2]} 81. h5 {[%clk 0:00:05.9]}
81... Kg7 {[%clk 0:00:12.5]} 82. Kf4 {[%clk 0:00:06.6]} 82... Kh6 {[%clk
0:00:13.4]} 83. Ke4 {[%clk 0:00:07.5]} 83... Kxh5 {[%clk 0:00:14]} 84. Kd4
{[%clk 0:00:08.4]} 84... Kg6 {[%clk 0:00:14.9]} 85. Kc4 {[%clk 0:00:08.4]} 85...
Kf6 {[%clk 0:00:15.8]} 86. Kxb4 {[%clk 0:00:09.2]} 86... Ke6 {[%clk 0:00:16.7]}
87. Kc5 {[%clk 0:00:09.6]} 87... Kd7 {[%clk 0:00:17.1]} 88. Kb6 {[%clk
0:00:10.2]} 88... Kc8 {[%clk 0:00:18]} 89. b4 {[%clk 0:00:10.9]} 89... Kb8
{[%clk 0:00:18.2]} 90. b5 {[%clk 0:00:11.6]} 90... Ka8 {[%clk 0:00:18.8]} 91.
Ka6 {[%clk 0:00:11.5]} 91... Kb8 {[%clk 0:00:19.4]} 92. b6 {[%clk 0:00:10.2]}
92... Ka8 {[%clk 0:00:20]} 93. b7+ {[%clk 0:00:07]} 93... Kb8 {[%clk 0:00:20.2]}
94. Kb6 {[%clk 0:00:07.2]} 1/2-1/2

[Event "Late-Titled-Tuesday-Blitz-June-04-2024"]
[Site "Chess.com"]
[Date "2024.06.04"]
[Round "4"]
[White "profedechess93"]
[Black "LUISMIGUELOV"]
[Result "1/2-1/2"]
[WhiteElo "2591"]
[BlackElo "2214"]
[TimeControl "180+1"]
[EndTime "14:40:48 PDT"]
[Termination "Game drawn by agreement"]

1. e4 {[%clk 0:03:00.9]} 1... c6 {[%clk 0:02:35.4]} 2. d4 {[%clk 0:02:57.4]}
2... d5 {[%clk 0:02:35.6]} 3. Nc3 {[%clk 0:02:57.9]} 3... dxe4 {[%clk
0:02:35.1]} 4. Nxe4 {[%clk 0:02:58.7]} 4... Bf5 {[%clk 0:02:35.1]} 5. Ng3 {[%clk
0:02:58.3]} 5... Bg6 {[%clk 0:02:35.6]} 6. h4 {[%clk 0:02:58.8]} 6... h6 {[%clk
0:02:35.1]} 7. h5 {[%clk 0:02:59.3]} 7... Bh7 {[%clk 0:02:35.3]} 8. Nf3 {[%clk
0:02:59.9]} 8... Nd7 {[%clk 0:02:35.3]} 9. Bd3 {[%clk 0:02:59.9]} 9... Bxd3
{[%clk 0:02:34.2]} 10. Qxd3 {[%clk 0:03:00.8]} 10... e6 {[%clk 0:02:34.2]} 11.
Bd2 {[%clk 0:03:01.4]} 11... Qb6 {[%clk 0:02:32.8]} 12. O-O-O {[%clk 0:03:01.3]}
12... Ngf6 {[%clk 0:02:32.2]} 13. Rhe1 {[%clk 0:02:58.9]} 13... O-O-O {[%clk
0:02:31.8]} 14. Qe2 {[%clk 0:02:41.8]} 14... Bb4 {[%clk 0:02:30.7]} 15. c3
{[%clk 0:02:40.8]} 15... Bd6 {[%clk 0:02:29.2]} 16. Ne5 {[%clk 0:02:41]} 16...
Bxe5 {[%clk 0:02:19.7]} 17. dxe5 {[%clk 0:02:41.9]} 17... Nd5 {[%clk 0:02:18.3]}
18. c4 {[%clk 0:02:09.7]} 18... Nb4 {[%clk 0:02:16]} 19. a3 {[%clk 0:02:09.2]}
19... Na6 {[%clk 0:02:10.4]} 20. Bc3 {[%clk 0:01:31.1]} 20... Nac5 {[%clk
0:02:07.8]} 21. f4 {[%clk 0:01:27.2]} 21... Qb3 {[%clk 0:01:49.3]} 22. Kb1
{[%clk 0:00:41.7]} 22... Nb6 {[%clk 0:01:48.2]} 23. Qc2 {[%clk 0:00:25]} 23...
Qxc4 {[%clk 0:01:45.6]} 24. Rxd8+ {[%clk 0:00:21.6]} 24... Rxd8 {[%clk
0:01:44.2]} 25. f5 {[%clk 0:00:22]} 25... Nd5 {[%clk 0:01:25.5]} 26. Ne4 {[%clk
0:00:20.6]} 26... Nxe4 {[%clk 0:01:23.3]} 27. Rxe4 {[%clk 0:00:20.1]} 27...
Nxc3+ {[%clk 0:01:23]} 28. bxc3 {[%clk 0:00:19.9]} 28... Qd3 {[%clk 0:01:20.4]}
29. fxe6 {[%clk 0:00:18.4]} 29... fxe6 {[%clk 0:01:19]} 30. Rf4 {[%clk
0:00:17.7]} 30... Qd1+ {[%clk 0:01:17.1]} 31. Qxd1 {[%clk 0:00:16.8]} 31...
Rxd1+ {[%clk 0:01:16.7]} 32. Kc2 {[%clk 0:00:17.7]} 32... Re1 {[%clk 0:01:14.3]}
33. Rf8+ {[%clk 0:00:17.8]} 33... Kc7 {[%clk 0:01:12.9]} 34. Rf7+ {[%clk
0:00:18.7]} 34... Kb6 {[%clk 0:01:12.1]} 35. Rxg7 {[%clk 0:00:19.2]} 35... Rxe5
{[%clk 0:01:12.2]} 36. g4 {[%clk 0:00:19.8]} 36... a5 {[%clk 0:01:02.8]} 37. Rg6
{[%clk 0:00:18.1]} 37... Re4 {[%clk 0:01:01.4]} 38. Kd3 {[%clk 0:00:18.2]} 38...
Ra4 {[%clk 0:00:59.1]} 39. Rxe6 {[%clk 0:00:17.2]} 39... Rxg4 {[%clk 0:00:58.6]}
40. Rxh6 {[%clk 0:00:17.8]} 40... Rh4 {[%clk 0:00:55.6]} 41. Rh7 {[%clk
0:00:16.2]} 41... Ka6 {[%clk 0:00:53.9]} 42. Ke3 {[%clk 0:00:16.2]} 42... b6
{[%clk 0:00:51.2]} 43. h6 {[%clk 0:00:16.3]} 43... Kb5 {[%clk 0:00:49.9]} 44.
Kd3 {[%clk 0:00:16.1]} 44... c5 {[%clk 0:00:45.4]} 45. c4+ {[%clk 0:00:06.8]}
45... Rxc4 {[%clk 0:00:42.6]} 46. Rb7 {[%clk 0:00:05.9]} 46... Rh4 {[%clk
0:00:42.5]} 47. h7 {[%clk 0:00:06.5]} 47... c4+ {[%clk 0:00:39.3]} 48. Ke3
{[%clk 0:00:07.2]} 48... c3 {[%clk 0:00:37.5]} 49. Kd3 {[%clk 0:00:06.9]} 49...
Rh3+ {[%clk 0:00:36.5]} 50. Kc2 {[%clk 0:00:07.4]} 50... a4 {[%clk 0:00:35.2]}
51. Rc7 {[%clk 0:00:07]} 51... Ka6 {[%clk 0:00:31.6]} 52. Rxc3 {[%clk 0:00:02]}
52... Rxh7 {[%clk 0:00:29.7]} 53. Rc4 {[%clk 0:00:02.6]} 53... b5 {[%clk
0:00:27.7]} 54. Rc6+ {[%clk 0:00:02.7]} 54... Ka5 {[%clk 0:00:27.3]} 55. Rc5
{[%clk 0:00:03.2]} 55... Rh2+ {[%clk 0:00:26.1]} 56. Kb1 {[%clk 0:00:02.7]}
56... Rh3 {[%clk 0:00:24.9]} 57. Kb2 {[%clk 0:00:02.2]} 57... Rb3+ {[%clk
0:00:24.2]} 58. Ka2 {[%clk 0:00:02.6]} 58... Kb6 {[%clk 0:00:24.2]} 59. Rf5
{[%clk 0:00:02.7]} 59... Rc3 {[%clk 0:00:23]} 60. Kb2 {[%clk 0:00:03]} 60... Rc5
{[%clk 0:00:21.8]} 61. Rf6+ {[%clk 0:00:03.2]} 61... Rc6 {[%clk 0:00:21.8]} 62.
Rf5 {[%clk 0:00:03.2]} 62... Ka5 {[%clk 0:00:20.7]} 63. Rg5 {[%clk 0:00:03.2]}
63... Rf6 {[%clk 0:00:19.4]} 64. Re5 {[%clk 0:00:03]} 64... Rf2+ {[%clk
0:00:18.6]} 65. Ka1 {[%clk 0:00:03.2]} 65... Kb6 {[%clk 0:00:17.5]} 66. Kb1
{[%clk 0:00:03.8]} 66... Kc6 {[%clk 0:00:17.1]} 67. Ka1 {[%clk 0:00:04.2]} 67...
Rc2 {[%clk 0:00:16.4]} 68. Kb1 {[%clk 0:00:04]} 68... Rc5 {[%clk 0:00:16.1]} 69.
Re4 {[%clk 0:00:04.2]} 69... Kd5 {[%clk 0:00:15.6]} 70. Rh4 {[%clk 0:00:03.4]}
70... Rc4 {[%clk 0:00:14]} 71. Rh5+ {[%clk 0:00:03.9]} 71... Kc6 {[%clk
0:00:13.9]} 72. Kb2 {[%clk 0:00:04.8]} 72... Rc5 {[%clk 0:00:12.8]} 73. Rh6+
{[%clk 0:00:05.2]} 73... Kd5 {[%clk 0:00:12.1]} 74. Rh5+ {[%clk 0:00:05.3]}
74... Kc4 {[%clk 0:00:11.9]} 75. Rh4+ {[%clk 0:00:04.7]} 75... Kd3 {[%clk
0:00:11.6]} 76. Rh3+ {[%clk 0:00:05.1]} 76... Kd4 {[%clk 0:00:11.5]} 77. Rh4+
{[%clk 0:00:05.4]} 77... Kd5 {[%clk 0:00:11.5]} 78. Rh5+ {[%clk 0:00:05.9]}
78... Kc6 {[%clk 0:00:11.4]} 79. Rh6+ {[%clk 0:00:06.4]} 79... Kb7 {[%clk
0:00:11.4]} 80. Rh7+ {[%clk 0:00:06.6]} 80... Kb6 {[%clk 0:00:11.5]} 81. Rh6+
{[%clk 0:00:06.8]} 81... Ka5 {[%clk 0:00:11.4]} 82. Rg6 {[%clk 0:00:07.2]} 82...
b4 {[%clk 0:00:11]} 83. axb4+ {[%clk 0:00:06.2]} 83... Kxb4 {[%clk 0:00:11]} 84.
Rg4+ {[%clk 0:00:07.1]} 84... Kb5 {[%clk 0:00:09.2]} 85. Ka3 {[%clk 0:00:07.3]}
85... Rc3+ {[%clk 0:00:09.1]} 86. Kb2 {[%clk 0:00:07.6]} 86... Rb3+ {[%clk
0:00:09]} 87. Ka2 {[%clk 0:00:08.2]} 87... Rc3 {[%clk 0:00:08.7]} 88. Kb2 {[%clk
0:00:08.1]} 88... Rc4 {[%clk 0:00:08.2]} 89. Rxc4 {[%clk 0:00:07.8]} 89... Kxc4
{[%clk 0:00:07.9]} 90. Ka3 {[%clk 0:00:08.7]} 90... Kb5 {[%clk 0:00:08.1]} 91.
Kb2 {[%clk 0:00:09.3]} 91... Kb4 {[%clk 0:00:08.1]} 92. Ka2 {[%clk 0:00:10.2]}
92... a3 {[%clk 0:00:08.2]} 93. Ka1 {[%clk 0:00:11.1]} 93... Kb3 {[%clk
0:00:05.2]} 94. Kb1 {[%clk 0:00:12]} 1/2-1/2

[Event "Late-Titled-Tuesday-Blitz-June-04-2024"]
[Site "Chess.com"]
[Date "2024.06.04"]
[Round "4"]
[White "pinelone"]
[Black "Alex_Banzea"]
[Result "1-0"]
[WhiteElo "2420"]
[BlackElo "2590"]
[TimeControl "180+1"]
[EndTime "14:40:55 PDT"]
[Termination "pinelone won by checkmate"]

1. Nf3 {[%clk 0:03:00.9]} 1... Nf6 {[%clk 0:03:00.1]} 2. c4 {[%clk 0:03:00.9]}
2... g6 {[%clk 0:03:01]} 3. b3 {[%clk 0:03:01]} 3... Bg7 {[%clk 0:03:01.8]} 4.
Bb2 {[%clk 0:03:01.4]} 4... d6 {[%clk 0:03:02.7]} 5. g3 {[%clk 0:03:01.7]} 5...
e5 {[%clk 0:03:01.9]} 6. Bg2 {[%clk 0:03:01.8]} 6... O-O {[%clk 0:03:02.5]} 7.
d3 {[%clk 0:03:02.2]} 7... c6 {[%clk 0:02:56.9]} 8. O-O {[%clk 0:03:01.8]} 8...
Re8 {[%clk 0:02:56.8]} 9. Qc2 {[%clk 0:02:53.8]} 9... a5 {[%clk 0:02:55.2]} 10.
Nc3 {[%clk 0:02:45.5]} 10... Na6 {[%clk 0:02:55.4]} 11. Rac1 {[%clk 0:02:43.1]}
11... h6 {[%clk 0:02:55]} 12. h3 {[%clk 0:02:41]} 12... Be6 {[%clk 0:02:53.7]}
13. e4 {[%clk 0:02:39.1]} 13... Kh7 {[%clk 0:02:44.8]} 14. Kh2 {[%clk
0:02:39.1]} 14... Nd7 {[%clk 0:02:42.2]} 15. Rcd1 {[%clk 0:02:32.7]} 15... Ndc5
{[%clk 0:02:42.1]} 16. d4 {[%clk 0:02:31.3]} 16... exd4 {[%clk 0:02:35.8]} 17.
Nxd4 {[%clk 0:02:31.5]} 17... Qe7 {[%clk 0:02:33.1]} 18. Nf5 {[%clk 0:02:25.6]}
18... Nb4 {[%clk 0:01:54.8]} 19. Qb1 {[%clk 0:02:19.4]} 19... Bxf5 {[%clk
0:01:00.4]} 20. exf5 {[%clk 0:02:19]} 20... Bxc3 {[%clk 0:01:01.3]} 21. Bxc3
{[%clk 0:02:06.4]} 21... Qe2 {[%clk 0:00:51.2]} 22. fxg6+ {[%clk 0:02:03.3]}
22... fxg6 {[%clk 0:00:51.3]} 23. Rxd6 {[%clk 0:02:01.9]} 23... Nbd3 {[%clk
0:00:31.5]} 24. Bd4 {[%clk 0:01:41]} 24... Re6 {[%clk 0:00:17.1]} 25. Bxc5
{[%clk 0:01:40.7]} 25... Nxc5 {[%clk 0:00:17]} 26. Rxe6 {[%clk 0:01:38.3]} 26...
Qxe6 {[%clk 0:00:17]} 27. h4 {[%clk 0:01:18.1]} 27... Re8 {[%clk 0:00:15.8]} 28.
h5 {[%clk 0:01:17.4]} 28... Kg7 {[%clk 0:00:15.9]} 29. hxg6 {[%clk 0:01:16.9]}
29... Qxg6 {[%clk 0:00:16.8]} 30. Qb2+ {[%clk 0:01:03.8]} 30... Qf6 {[%clk
0:00:16.4]} 31. Qd2 {[%clk 0:00:59.2]} 31... Rd8 {[%clk 0:00:15.2]} 32. Qxa5
{[%clk 0:00:46.9]} 32... Ne6 {[%clk 0:00:06.3]} 33. Re1 {[%clk 0:00:32.1]} 33...
Re8 {[%clk 0:00:03.9]} 34. Qe5 {[%clk 0:00:30.6]} 34... Qxe5 {[%clk 0:00:03.3]}
35. Rxe5 {[%clk 0:00:30.8]} 35... Kf6 {[%clk 0:00:04.2]} 36. Rh5 {[%clk
0:00:20]} 36... Kg6 {[%clk 0:00:03.4]} 37. Re5 {[%clk 0:00:20.1]} 37... Kf6
{[%clk 0:00:03.8]} 38. Re3 {[%clk 0:00:19]} 38... Rd8 {[%clk 0:00:04.3]} 39. Re2
{[%clk 0:00:18.7]} 39... Nd4 {[%clk 0:00:02.5]} 40. Rb2 {[%clk 0:00:18.3]} 40...
b6 {[%clk 0:00:02.2]} 41. b4 {[%clk 0:00:17.8]} 41... Re8 {[%clk 0:00:01.4]} 42.
b5 {[%clk 0:00:17.1]} 42... c5 {[%clk 0:00:01.8]} 43. Bd5 {[%clk 0:00:16.5]}
43... Rd8 {[%clk 0:00:02.7]} 44. Kg2 {[%clk 0:00:16.6]} 44... Re8 {[%clk
0:00:03]} 45. a4 {[%clk 0:00:16.2]} 45... Re1 {[%clk 0:00:03.2]} 46. a5 {[%clk
0:00:15.2]} 46... bxa5 {[%clk 0:00:04.1]} 47. Ra2 {[%clk 0:00:15.4]} 47... Re8
{[%clk 0:00:03.7]} 48. Rxa5 {[%clk 0:00:15.3]} 48... Rb8 {[%clk 0:00:02.7]} 49.
Ra6+ {[%clk 0:00:15.5]} 49... Ke5 {[%clk 0:00:02.7]} 50. Rxh6 {[%clk 0:00:15.4]}
50... Nf5 {[%clk 0:00:03.3]} 51. Rh5 {[%clk 0:00:15.2]} 51... Kf6 {[%clk
0:00:03.4]} 52. Rh7 {[%clk 0:00:15.1]} 52... Re8 {[%clk 0:00:02.1]} 53. Rf7+
{[%clk 0:00:15.1]} 53... Kg6 {[%clk 0:00:02.5]} 54. Rc7 {[%clk 0:00:15.4]} 54...
Nd4 {[%clk 0:00:02.6]} 55. Rxc5 {[%clk 0:00:15.4]} 55... Re2 {[%clk 0:00:03.1]}
56. Rc6+ {[%clk 0:00:14.4]} 56... Nxc6 {[%clk 0:00:02.6]} 57. Bxc6 {[%clk
0:00:10.3]} 57... Rb2 {[%clk 0:00:03.2]} 58. Kf3 {[%clk 0:00:07.7]} 58... Kf6
{[%clk 0:00:04.1]} 59. Ke3 {[%clk 0:00:07.5]} 59... Ke5 {[%clk 0:00:05]} 60. g4
{[%clk 0:00:07.2]} 60... Rb3+ {[%clk 0:00:04.9]} 61. Ke2 {[%clk 0:00:06.3]}
61... Kf4 {[%clk 0:00:05]} 62. Bd5 {[%clk 0:00:03.7]} 62... Kxg4 {[%clk
0:00:04.4]} 63. f3+ {[%clk 0:00:02.1]} 63... Kf4 {[%clk 0:00:04.5]} 64. Kd2
{[%clk 0:00:02.1]} 64... Ke5 {[%clk 0:00:04.8]} 65. Kc2 {[%clk 0:00:02.5]} 65...
Rb4 {[%clk 0:00:04.8]} 66. Kc3 {[%clk 0:00:02.9]} 66... Rb1 {[%clk 0:00:05.1]}
67. Be4 {[%clk 0:00:02.1]} 67... Rc1+ {[%clk 0:00:05.6]} 68. Kb4 {[%clk
0:00:02.5]} 68... Kd4 {[%clk 0:00:05.4]} 69. Bd5 {[%clk 0:00:02.5]} 69... Rb1+
{[%clk 0:00:05.3]} 70. Ka5 {[%clk 0:00:01]} 70... Kc5 {[%clk 0:00:06.2]} 71. Ka4
{[%clk 0:00:01.2]} 71... Rb2 {[%clk 0:00:04.7]} 72. Ka3 {[%clk 0:00:01.4]} 72...
Rb1 {[%clk 0:00:04.1]} 73. Ka2 {[%clk 0:00:01.8]} 73... Rf1 {[%clk 0:00:03.6]}
74. Kb3 {[%clk 0:00:01.9]} 74... Rf2 {[%clk 0:00:04.5]} 75. Kc3 {[%clk
0:00:02.1]} 75... Rf1 {[%clk 0:00:05.4]} 76. Kd3 {[%clk 0:00:02.6]} 76... Re1
{[%clk 0:00:05.7]} 77. Kd2 {[%clk 0:00:02.7]} 77... Rf1 {[%clk 0:00:06]} 78. Ke3
{[%clk 0:00:03.2]} 78... Re1+ {[%clk 0:00:06.4]} 79. Kf4 {[%clk 0:00:03.6]}
79... Re8 {[%clk 0:00:06.9]} 80. Kg4 {[%clk 0:00:03.6]} 80... Rf8 {[%clk
0:00:07.8]} 81. f4 {[%clk 0:00:03.4]} 81... Kd4 {[%clk 0:00:08.7]} 82. Kg5
{[%clk 0:00:03.2]} 82... Re8 {[%clk 0:00:08.3]} 83. b6 {[%clk 0:00:03.1]} 83...
Kc5 {[%clk 0:00:02.3]} 84. b7 {[%clk 0:00:03.6]} 84... Kd6 {[%clk 0:00:03.2]}
85. Kg6 {[%clk 0:00:03.6]} 85... Ke7 {[%clk 0:00:02.9]} 86. f5 {[%clk
0:00:03.1]} 86... Rd8 {[%clk 0:00:01.7]} 87. f6+ {[%clk 0:00:03.3]} 87... Kf8
{[%clk 0:00:02.4]} 88. Kf5 {[%clk 0:00:02.5]} 88... Re8 {[%clk 0:00:02.5]} 89.
c5 {[%clk 0:00:01.9]} 89... Rd8 {[%clk 0:00:03]} 90. Ke5 {[%clk 0:00:01.5]}
90... Rb8 {[%clk 0:00:02.1]} 91. c6 {[%clk 0:00:01.3]} 91... Re8+ {[%clk
0:00:01.9]} 92. Kd6 {[%clk 0:00:01.4]} 92... Rd8+ {[%clk 0:00:01.8]} 93. Kc5
{[%clk 0:00:02.3]} 93... Rb8 {[%clk 0:00:01.9]} 94. Kd4 {[%clk 0:00:02.8]} 94...
Rd8 {[%clk 0:00:02.3]} 95. Kc4 {[%clk 0:00:03.2]} 95... Re8 {[%clk 0:00:02.9]}
96. Kc5 {[%clk 0:00:03.8]} 96... Rd8 {[%clk 0:00:03.5]} 97. c7 {[%clk 0:00:04]}
97... Re8 {[%clk 0:00:02.8]} 98. Kc6 {[%clk 0:00:04.6]} 98... Rc8 {[%clk
0:00:02.5]} 99. b8=Q {[%clk 0:00:04.3]} 99... Rd8 {[%clk 0:00:01.7]} 100.
cxd8=Q# {[%clk 0:00:03.9]} 1-0